bitfinex/quotes_ETHUSD_20251221
["timestamp","ask_amount","ask_price","bid_price","bid_amount"]
[1766314118918,0.002,3000.7,3000.1,3.7671892]
[1766314119526,0.002,3000.7,3000.1,0.434]
[1766314119720,0.002,3000.7,3000.1,4.9436421]
[1766314120029,0.002,3000.7,3000.1,1.61042054]
[1766314120224,0.002,3000.7,3000.1,1.17642054]
[1766314120439,0.002,3000.7,3000.1,1.61042054]
[1766314123332,0.002,3000.7,3000.1,1.17642054]
[1766314123513,0.002,3000.7,3000.1,1.61042054]
[1766314126312,0.002,3000.7,3000.2,0.90959099]
[1766314130541,0.002,3000.7,3000.2,1.34359099]
[1766314135665,0.002,3000.7,3000.2,4.67665732]
[1766314135867,0.002,3000.7,3000.2,1.34359099]
[1766314138384,0.002,3000.7,3000.2,0.90959099]
[1766314138573,0.002,3000.7,3000.2,1.34359099]
[1766314141606,0.002,3000.7,3000.3,4.61985693]
[1766314141887,0.002,3000.7,3000.3,4.15217734]
[1766314142383,0.002,3000.9,3000.3,7.48515003]
[1766314142761,0.002,3000.9,3000.3,7.48368937]
[1766314144386,0.002,3000.9,3000.2,4.67666061]
[1766314144568,0.002,3000.9,3000.3,4.95180338]
[1766314144961,0.002,3000.9,3000.3,8.28479609]
[1766314147576,0.002,3000.9,3000.4,4.15067313]
[1766314149274,0.002,3000.9,3000.3,0.8010867]
[1766314150490,8.8365,3000.9,3000.3,0.8010867]
[1766314150788,0.002,3000.9,3000.2,0.434]
[1766314151287,0.002,3000.9,3000.2,3.7670962]
[1766314151467,0.002,3000.9,3000.3,0.434]
[1766314157196,0.002,3000.9,3000.3,7.91765562]
[1766314157984,0.002,3000.9,3000.5,4.15067313]
[1766314158191,0.002,3000.9,3000.5,4.94243869]
[1766314160495,0.002,3000.9,3000.5,0.79176556]
[1766314160676,0.002,3000.9,3000.4,7.48355309]
[1766314162902,0.002,3000.9,3000.4,3.33287996]
[1766314163306,0.002,3000.9,3000.3,0.435]
[1766314164406,0.002,3000.9,3000.3,3.76797094]
[1766314168010,0.002,3000.9,3000.6,4.15067313]
[1766314168208,0.002,3000.9,3000.7,0.41506731]
[1766314172008,0.002,3000.9,3000.7,0.44839286]
[1766314172184,0.002,3000.9,3000.7,0.41506731]
[1766314177736,0.002,3000.9,3000.7,7.89768688]
[1766314177909,0.002,3000.9,3000.7,8.33168688]
[1766314178111,0.002,3000.9,3000.8,0.83316869]
[1766314180619,0.002,3000.9,3000.8,4.16561337]
[1766314180820,0.002,3000.9,3000.8,0.83316869]
[1766314181412,0.002,3000.9,3000.7,0.41506731]
[1766314184518,0.002,3000.9,3000.6,0.434]
[1766314187552,0.002,3000.9,3000.6,0.435]
[1766314191526,0.002,3000.9,3000.6,0.001]
[1766314195632,0.434,3001.4,3000.8,4.15006878]
[1766314196051,0.434,3001.4,3000.7,3.33251701]
[1766314196243,0.434,3001.4,3000.7,1.12513478]
[1766314197549,0.434,3001.4,3000.6,0.001]
[1766314197753,6.1285,3001.4,3000.6,0.001]
[1766314198248,8.5245,3001.4,3000.6,0.001]
[1766314198660,8.0905,3001.3,3000.6,0.001]
[1766314200334,5.6945,3001.2,3000.6,0.001]
[1766314201259,0.434,3001.4,3000.6,0.001]
[1766314201466,8.5245,3001.4,3000.6,5.31973749]
[1766314201660,0.434,3001.4,3000.6,5.31973749]
[1766314203247,0.434,3001.4,3000.6,8.65229674]
[1766314204039,8.5245,3001.4,3000.6,1.16966871]
[1766314204438,8.5265,3001.4,3000.6,4.50231501]
[1766314206144,0.436,3001.4,3000.6,4.50231501]
[1766314206345,0.436,3001.4,3000.7,0.5371315]
[1766314208276,0.436,3001.4,3000.7,3.86967565]
[1766314209860,0.436,3001.4,3000.6,0.437]
[1766314209861,8.4513,3001.2,3000.6,0.437]
[1766314210397,8.4513,3001.2,3000.6,0.871]
[1766314211270,5.8271,3001.2,3000.6,0.871]
[1766314211788,5.8271,3001.3,3000.6,0.871]
[1766314212091,8.4513,3001.3,3000.6,0.871]
[1766314212569,0.002,3001.2,3000.6,0.871]
[1766314212760,0.002,3001.2,3000.6,1.29157729]
[1766314213291,5.8271,3000.9,3000.6,0.437]
[1766314213458,5.8271,3000.9,3000.6,0.001]
[1766314213459,8.4513,3000.9,3000.6,0.001]
[1766314214096,5.8271,3000.9,3000.6,0.001]
[1766314214257,8.4513,3001.1,3000.6,0.001]
[1766314217505,8.4513,3001.1,3000.6,1.00229333]
[1766314219799,0.002,3001.2,3000.6,1.00229333]
[1766314221494,8.4533,3001.2,3000.6,1.00229333]
[1766314226180,5.3701,3001.1,3000.6,1.00229333]
[1766314231318,3.61525933,3001.2,3000.6,1.00229333]
[1766314231516,7.9963,3001.2,3000.6,1.00229333]
[1766314232324,5.3701,3001.1,3000.6,1.00229333]
[1766314235439,7.9436,3001.1,3000.6,1.00229333]
[1766314235735,8.0712,3001.1,3000.6,1.00229333]
[1766314236237,5.4977,3001.0,3000.6,1.00229333]
[1766314236401,8.0712,3001.0,3000.6,1.00229333]
[1766314238738,8.0712,3001.1,3000.6,0.001]
[1766314239104,8.0712,3001.1,3000.7,1.00124321]
[1766314241833,8.0712,3001.1,3000.7,0.98624321]
[1766314243733,0.002,3001.2,3000.7,0.98624321]
[1766314246636,0.002,3001.1,3000.7,0.98624321]
[1766314250441,5.4997,3001.1,3000.7,0.98624321]
[1766314257120,0.002,3001.1,3000.7,0.98624321]
[1766314262560,8.0712,3001.0,3000.7,0.98624321]
[1766314262851,8.0712,3000.8,3000.6,0.001]
[1766314273459,2.5615,3000.8,3000.5,0.001]
[1766314273681,8.1053,3000.6,3000.4,0.1345129]
[1766314274041,8.1053,3000.4,3000.3,0.001]
[1766314277668,8.23883341,3000.4,3000.3,0.001]
[1766314277869,0.95741675,3000.4,3000.0,0.001]
[1766314278077,8.1053,3000.3,3000.0,0.001]
[1766314280574,8.2418129,3000.3,3000.0,0.001]
[1766314288586,0.1365129,3000.3,3000.0,0.002]
[1766314288758,8.0952,3000.6,3000.0,0.002]
[1766314288958,0.13353786,3000.3,3000.0,0.002]
[1766314295991,0.13353786,3000.3,3000.0,0.001]
[1766314296210,5.3347,3000.4,3000.0,0.001]
[1766314296395,7.8476,3000.4,3000.0,0.001]
[1766314296597,7.98113786,3000.4,3000.0,0.001]
[1766314297094,4.15372215,3000.3,3000.0,0.001]
[1766314297272,5.3347,3000.1,3000.0,0.001]
[1766314297473,0.84171379,3000.4,3000.0,0.001]
[1766314297678,0.13453786,3000.2,3000.0,0.001]
[1766314297880,0.84171379,3000.4,3000.0,0.001]
[1766314298081,0.13353786,3000.3,3000.0,0.001]
[1766314298394,8.68931379,3000.4,3000.0,0.001]
[1766314298605,8.68931379,3000.4,3000.0,0.13753786]
[1766314299897,5.3347,3000.3,3000.0,0.13753786]
[1766314301295,0.84371379,3000.4,3000.0,0.13753786]
[1766314301490,0.84371379,3000.4,3000.0,0.001]
[1766314301693,0.84371379,3000.4,3000.1,0.13753786]
[1766314302189,6.17841379,3000.4,3000.1,0.13753786]
[1766314302699,8.69131379,3000.4,3000.1,0.13753786]
[1766314304499,3.35661379,3000.4,3000.1,0.13753786]
[1766314304664,5.3347,3000.3,3000.1,0.13753786]
[1766314308996,7.8476,3000.3,3000.1,0.13753786]
[1766314310104,8.76013138,3000.3,3000.0,0.001]
[1766314310304,8.76013138,3000.3,3000.0,0.13853786]
[1766314311908,0.91253138,3000.3,3000.0,0.13853786]
[1766314312297,7.8476,3000.3,3000.0,0.13853786]
[1766314315318,0.13953786,3000.4,3000.0,0.13853786]
[1766314315478,0.002,3000.4,3000.1,0.001]
[1766314315676,0.001,3000.4,3000.1,0.001]
[1766314315877,0.001,3000.4,3000.2,0.13353341]
[1766314317013,0.002,3000.6,3000.3,4.15372215]
[1766314317210,0.002,3000.6,3000.4,0.42872556]
[1766314317598,0.002,3000.6,3000.5,0.434]
[1766314326393,0.002,3000.8,3000.5,0.434]
[1766314328002,7.5936,3000.8,3000.5,0.434]
[1766314328207,5.1754,3000.8,3000.5,0.434]
[1766314328407,0.002,3000.8,3000.5,0.434]
[1766314339532,0.002,3000.8,3000.5,0.435]
[1766314343341,0.002,3000.8,3000.5,0.001]
[1766314344238,0.76136,3000.8,3000.5,0.001]
[1766314344541,2.5236,3000.6,3000.5,0.001]
[1766314344841,2.5236,3000.4,3000.0,0.001]
[1766314345145,7.9026,3000.4,3000.1,0.435]
[1766314349550,2.5256,3000.6,3000.1,0.435]
[1766314349845,8.15516,3000.5,3000.0,0.001]
[1766314350042,5.379,3000.4,3000.0,0.436]
[1766314350252,7.9026,3000.4,3000.0,0.436]
[1766314353120,5.379,3000.4,3000.0,0.436]
[1766314354631,2.5256,3000.6,3000.0,0.436]
[1766314354828,8.320196,3000.6,3000.0,0.436]
[1766314356456,8.203296,3000.6,3000.0,0.436]
[1766314356840,2.6046,3000.4,3000.0,0.436]
[1766314357043,7.7857,3000.4,3000.0,0.436]
[1766314357426,8.203296,3000.6,3000.0,0.436]
[1766314357623,6.0014296,3000.5,3000.0,0.436]
[1766314358650,8.6060296,3000.5,3000.0,0.436]
[1766314363437,6.0014296,3000.5,3000.0,0.436]
[1766314365339,8.6060296,3000.5,3000.0,0.436]
[1766314365671,7.7857,3000.4,3000.0,0.436]
[1766314372370,8.68806256,3000.4,3000.0,0.436]
[1766314372541,5.1811,3000.3,3000.0,0.436]
[1766314372745,7.7857,3000.3,3000.0,0.436]
[1766314376176,5.1811,3000.3,3000.0,0.436]
[1766314376866,7.7857,3000.3,3000.0,0.436]
[1766314378345,7.7857,3000.3,3000.0,0.001]
[1766314378676,8.65450626,3000.3,3000.0,0.001]
[1766314380067,7.7857,3000.1,3000.0,0.001]
[1766314380465,8.65450626,3000.3,3000.0,0.001]
[1766314380663,8.65450626,3000.3,2999.9,0.001]
[1766314380664,5.1811,3000.2,2999.9,0.001]
[1766314380868,7.7857,3000.0,2999.8,0.439]
[1766314381046,7.7857,3000.2,2999.8,0.439]
[1766314381243,8.65115063,3000.2,2999.8,0.439]
[1766314383476,7.7857,2999.8,2999.6,0.001]
[1766314383645,8.78733767,3000.1,2999.6,0.001]
[1766314384550,7.7857,3000.1,2999.6,0.001]
[1766314384745,0.86511506,3000.0,2999.6,0.001]
[1766314388289,0.436,3000.1,2999.6,0.001]
[1766314388604,2.4841,3000.5,2999.6,0.001]
[1766314388888,7.635,3000.5,2999.6,0.001]
[1766314389078,7.635,3000.5,2999.7,1.00156076]
[1766314389587,2.4841,3000.5,2999.7,1.00156076]
[1766314389787,5.1509,3000.4,2999.7,1.00156076]
[1766314390397,7.633,3000.4,2999.7,1.00156076]
[1766314391004,5.1509,3000.3,2999.7,1.00156076]
[1766314391345,0.002,3000.5,2999.7,1.00156076]
[1766314391346,7.633,3000.2,2999.7,1.00156076]
[1766314395815,7.635,3000.2,2999.7,1.00156076]
[1766314396826,5.1509,3000.1,2999.7,1.00156076]
[1766314396978,7.633,3000.0,2999.7,1.00156076]
[1766314397501,5.1509,3000.0,2999.7,1.00156076]
[1766314398946,0.002,3000.2,2999.7,1.00156076]
[1766314399633,8.43620675,3000.2,2999.7,1.00156076]
[1766314399846,5.1509,3000.1,2999.7,1.00156076]
[1766314400330,2.4821,3000.0,2999.7,1.00156076]
[1766314400700,5.1509,3000.1,2999.7,1.00156076]
[1766314403614,5.1529,3000.1,2999.6,0.001]
[1766314403806,5.1529,3000.1,2999.6,1.00256076]
[1766314404435,7.635,3000.1,2999.6,1.00256076]
[1766314404636,8.47882067,3000.1,2999.6,1.00256076]
[1766314406704,7.635,3000.1,2999.6,1.00256076]
[1766314411405,5.1529,3000.1,2999.6,1.00256076]
[1766314413643,5.1529,3000.1,2999.6,0.001]
[1766314414051,5.1529,3000.1,2999.7,1.00161761]
[1766314415144,0.002,3000.1,2999.7,1.00161761]
[1766314415346,7.4577,3000.5,2999.8,4.15426717]
[1766314415547,0.002,3000.5,2999.9,0.95058848]
[1766314415935,0.002,3000.5,3000.0,1.00148052]
[1766314416720,0.002,3000.5,3000.0,5.15574769]
[1766314416933,0.002,3000.5,3000.0,1.00148052]
[1766314417134,0.002,3000.5,2999.9,4.28401362]
[1766314417343,0.002,3000.5,3000.0,0.97735079]
[1766314418431,0.002,3000.5,3000.0,0.84382808]
[1766314418641,0.002,3000.5,3000.1,1.00142034]
[1766314425240,0.002,3000.5,3000.2,0.434]
[1766314425963,0.002,3000.5,3000.3,1.00142034]
[1766314436570,0.002,3000.6,3000.3,1.00142034]
[1766314445474,0.002,3000.6,3000.3,1.47838408]
[1766314445855,0.002,3000.6,3000.3,0.47696374]
[1766314446054,0.002,3000.6,3000.4,1.00134681]
[1766314449589,0.002,3000.6,3000.3,0.434]
[1766314449873,5.3333,3000.6,3000.3,0.434]
[1766314450080,7.7037,3000.6,3000.3,0.434]
[1766314450246,7.7037,3000.6,3000.3,1.00134681]
[1766314450452,7.7017,3000.5,3000.3,1.00134681]
[1766314455587,7.7017,3000.5,3000.2,1.43634681]
[1766314458669,0.002,3000.6,3000.2,1.43634681]
[1766314459286,0.002,3000.6,3000.2,0.435]
[1766314459789,0.002,3000.6,3000.3,1.00142034]
[1766314460491,0.002,3000.6,3000.2,0.435]
[1766314460786,0.002,3000.6,3000.2,1.81345201]
[1766314463101,2.4,3000.5,3000.1,0.001]
[1766314463263,7.7043,3000.3,3000.1,0.001]
[1766314465695,7.7043,3000.5,3000.1,0.001]
[1766314466492,2.4,3000.5,3000.1,0.001]
[1766314466674,0.2402,3000.4,3000.1,0.001]
[1766314466879,7.9445,3000.4,3000.1,0.001]
[1766314467976,5.3043,3000.3,2999.6,0.001]
[1766314468182,5.3043,3000.1,2999.6,0.001]
[1766314468500,7.7043,3000.1,2999.6,0.001]
[1766314469681,7.8405,3000.1,2999.6,0.001]
[1766314471674,5.4405,3000.0,2999.6,0.001]
[1766314472279,7.8353,3000.0,2999.6,0.001]
[1766314472613,2.3948,3000.0,2999.6,0.001]
[1766314472785,5.4405,2999.9,2999.6,0.001]
[1766314475516,7.7571,2999.9,2999.6,0.001]
[1766314478785,2.3166,3000.1,2999.6,0.001]
[1766314479180,7.4342,3000.1,2999.6,0.001]
[1766314479380,5.1176,3000.0,2999.6,0.001]
[1766314480617,7.4342,3000.0,2999.6,0.001]
[1766314482630,8.87083767,3000.3,2999.6,1.5082]
[1766314482916,2.3166,3000.4,2999.7,1.5033]
[1766314483217,7.4342,3000.4,2999.8,1.5033]
[1766314486901,5.1176,3000.3,2999.8,1.5033]
[1766314487096,7.4342,3000.3,2999.8,1.5033]
[1766314488400,2.3166,2999.9,2999.6,0.001]
[1766314488594,7.4342,2999.9,2999.6,0.001]
[1766314489008,7.4342,3000.1,2999.6,0.001]
[1766314492505,0.33349364,3000.2,2999.6,0.001]
[1766314492699,5.1176,2999.9,2999.6,0.001]
[1766314493500,2.3166,2999.8,2999.6,0.001]
[1766314493729,5.1176,2999.7,2999.6,0.001]
[1766314495192,5.1176,2999.7,2999.5,0.001]
[1766314495389,7.4342,2999.7,2999.5,0.001]
[1766314495595,8.17762,2999.7,2999.5,0.001]
[1766314496220,5.1176,2999.6,2999.4,0.001]
[1766314496438,7.4342,2999.6,2999.4,0.001]
[1766314497297,7.4342,2999.6,2999.5,0.001]
[1766314497594,7.4342,2999.6,2999.4,0.001]
[1766314497795,8.251962,2999.6,2999.4,0.001]
[1766314498609,8.251962,2999.6,2999.3,0.001]
[1766314498610,7.4342,2999.5,2999.3,0.001]
[1766314498807,5.1176,2999.4,2999.3,0.001]
[1766314499000,2.3166,2999.5,2999.3,0.001]
[1766314499328,5.935362,2999.6,2999.3,0.001]
[1766314500535,2.3166,2999.1,2998.3,0.001]
[1766314500831,7.4342,2998.8,2998.3,0.001]
[1766314501130,7.4342,2998.8,2998.3,1.4401]
[1766314502005,5.1176,2998.8,2998.3,1.4401]
[1766314502422,0.13359406,2998.9,2998.3,3.33620031]
[1766314502732,0.13359406,2998.9,2998.5,1.4403]
[1766314502902,0.13359406,2998.9,2998.5,1.91475003]
[1766314503945,0.13359406,2998.9,2998.6,1.4328]
[1766314505939,5.5526,2999.1,2998.6,1.4328]
[1766314506145,2.236,2999.7,2998.7,1.4241]
[1766314506308,1.43682833,2999.6,2998.9,1.4241]
[1766314506511,0.435,2999.6,2998.9,1.4241]
[1766314506719,5.466,2999.6,2998.9,1.4241]
[1766314506916,7.702,2999.6,2998.9,1.4241]
[1766314507338,5.031,2999.5,2998.8,0.89132419]
[1766314507521,0.435,2999.6,2998.7,1.4209]
[1766314507522,7.267,2999.3,2998.7,1.4209]
[1766314511231,2.236,2999.5,2998.7,1.4209]
[1766314511432,7.267,2999.5,2998.7,1.4209]
[1766314511860,7.267,2999.3,2998.7,1.4209]
[1766314512066,5.031,2999.2,2998.7,1.4209]
[1766314512363,5.031,2999.2,2998.6,1.00182833]
[1766314512540,7.267,2999.2,2998.6,1.3793]
[1766314513227,7.267,2999.2,2998.6,1.3803]
[1766314513988,5.031,2999.2,2998.6,1.3803]
[1766314514274,0.435,2999.3,2998.7,1.3633]
[1766314515638,5.466,2999.3,2998.7,1.3633]
[1766314517278,7.267,2999.0,2998.6,0.61641809]
[1766314517449,7.267,2999.0,2998.6,0.001]
[1766314518250,2.236,2999.0,2998.6,0.001]
[1766314518451,5.031,2998.9,2998.6,0.001]
[1766314519085,7.267,2998.9,2998.6,0.001]
[1766314520372,5.031,2998.7,2998.4,0.001]
[1766314521078,2.236,2998.5,2997.8,3.33571604]
[1766314521284,7.267,2998.4,2997.8,1.3107]
[1766314521454,7.267,2998.4,2997.8,4.64647666]
[1766314522062,7.267,2998.4,2997.8,1.3107]
[1766314522464,5.031,2998.3,2997.8,1.3107]
[1766314523584,7.267,2998.3,2997.8,1.3107]
[1766314524088,7.267,2998.3,2997.8,4.64645022]
[1766314525882,5.031,2998.3,2997.7,1.3]
[1766314526083,5.031,2998.3,2997.8,1.3]
[1766314527576,5.031,2998.3,2997.8,4.63570058]
[1766314527775,5.031,2998.3,2997.8,4.63770058]
[1766314528580,2.236,2998.4,2997.8,3.33770058]
[1766314528886,0.435,2998.5,2997.9,1.286]
[1766314529185,5.031,2998.4,2997.9,1.286]
[1766314530285,5.031,2998.2,2997.8,0.002]
[1766314532384,0.435,2998.4,2997.9,1.2531]
[1766314533290,0.435,2998.4,2997.9,4.58874375]
[1766314533688,0.435,2998.4,2997.9,1.2531]
[1766314533998,5.3544,2998.4,2997.9,1.2531]
[1766314534491,7.5292,2998.4,2997.9,4.58874686]
[1766314534861,7.5302,2998.4,2997.9,1.2531]
[1766314535794,7.0809,2998.3,2997.8,0.002]
[1766314536095,7.0809,2998.3,2997.8,1.224]
[1766314536304,7.0809,2998.1,2997.8,0.002]
[1766314536593,2.1211,2998.3,2997.8,0.002]
[1766314536781,2.1211,2998.3,2997.8,1.2178]
[1766314537162,7.0809,2998.3,2997.8,4.5535723]
[1766314537364,7.0809,2998.2,2997.8,3.3377723]
[1766314537593,7.0809,2998.2,2997.8,0.002]
[1766314538583,4.9598,2998.1,2997.8,0.002]
[1766314538793,7.0809,2998.1,2997.8,0.002]
[1766314541397,2.1211,2997.9,2997.8,0.002]
[1766314541692,7.0809,2997.9,2997.6,3.33696884]
[1766314541896,7.0809,2997.9,2997.8,0.002]
[1766314542097,0.436,2998.4,2997.6,4.58300226]
[1766314542392,2.1211,2998.2,2997.6,3.33696884]
[1766314542694,2.1211,2997.9,2997.6,3.33696884]
[1766314543271,2.1211,2997.9,2997.6,6.67297097]
[1766314544872,7.0809,2997.9,2997.6,6.67297097]
[1766314545783,7.0809,2997.9,2997.6,3.33696884]
[1766314546095,7.0809,2997.9,2997.7,0.71090687]
[1766314546296,7.0809,2998.3,2997.7,0.71090687]
[1766314546597,2.1211,2998.0,2997.4,4.15977859]
[1766314546898,2.1211,2997.8,2997.4,4.59477859]
[1766314547876,2.1211,2997.8,2997.5,3.33609988]
[1766314548093,2.1211,2997.8,2997.6,0.79308785]
[1766314548801,7.0809,2997.8,2997.6,0.79308785]
[1766314549013,7.0809,2997.8,2997.6,4.12899649]
[1766314549195,1.43818308,2998.4,2997.6,8.28777508]
[1766314549196,0.001,2998.2,2997.6,8.28777508]
[1766314549392,4.9598,2998.1,2997.4,0.436]
[1766314549597,4.9598,2998.1,2997.4,4.59477859]
[1766314549793,1.5814,2998.0,2997.5,0.45957786]
[1766314549976,0.001,2998.2,2997.5,0.45957786]
[1766314549977,2.1424,2997.9,2997.5,0.45957786]
[1766314550177,2.1424,2997.8,2997.5,0.45957786]
[1766314550511,2.1424,2997.8,2997.6,3.33590864]
[1766314550814,0.001,2998.2,2997.7,4.04905083]
[1766314551107,0.001,2998.2,2997.8,0.03335779]
[1766314551609,0.001,2998.2,2997.7,4.04905083]
[1766314551972,0.001,2998.2,2997.8,4.59377859]
[1766314552305,0.001,2998.2,2997.8,3.10017859]
[1766314552601,0.001,2998.2,2998.0,3.33555703]
[1766314553606,0.001,2998.2,2997.9,1.04851203]
[1766314553807,0.001,2998.2,2997.7,3.33582704]
[1766314554389,0.001,2998.2,2997.5,4.22686668]
[1766314554808,0.001,2998.2,2997.6,3.33600213]
[1766314556015,0.001,2998.2,2997.6,3.33800213]
[1766314556212,0.001,2998.2,2997.7,0.75648688]
[1766314557884,0.001,2998.2,2997.8,7.49455816]
[1766314558320,0.001,2998.4,2997.8,7.49455816]
[1766314558321,0.89270528,2999.2,2998.0,4.15877859]
[1766314558491,0.435,2998.4,2998.0,4.15877859]
[1766314558839,3.33412589,2999.3,2997.9,0.03335668]
[1766314558984,4.15877859,2998.8,2997.8,3.33577957]
[1766314559604,4.15877859,2998.8,2997.7,30.0]
[1766314560119,4.15877859,2998.8,2997.8,3.33577957]
[1766314560691,4.15877859,2998.8,2997.9,0.435]
[1766314561309,4.15877859,2998.8,2997.9,3.77060182]
[1766314561505,4.15791664,2998.7,2997.9,3.77060182]
[1766314561817,0.435,2998.9,2998.0,0.71063814]
[1766314561818,4.59291664,2998.9,2998.0,0.71063814]
[1766314561986,1.00193875,2998.6,2998.0,8.10483814]
[1766314562825,4.15791664,2998.2,2997.6,0.002]
[1766314563014,4.15791664,2998.0,2997.6,0.002]
[1766314563521,4.15791664,2998.0,2997.7,5.1295]
[1766314563725,4.15791664,2998.2,2997.6,0.002]
[1766314564042,4.15791664,2998.2,2997.7,0.37938563]
[1766314564522,4.15891664,2998.2,2997.7,0.37938563]
[1766314564838,4.15891664,2998.2,2997.6,0.002]
[1766314565918,0.001,2998.2,2997.6,0.002]
[1766314566223,4.15891664,2998.2,2997.6,0.002]
[1766314566825,7.67491664,2998.2,2997.6,0.002]
[1766314567720,0.001,2998.2,2997.6,0.002]
[1766314567901,4.15791664,2998.1,2997.5,0.45778346]
[1766314568233,3.29591664,2997.7,2997.2,0.435]
[1766314568389,1.00311948,2998.2,2997.2,0.435]
[1766314568718,1.00311948,2998.2,2997.5,5.2278]
[1766314568919,1.00311948,2998.2,2997.2,3.77140588]
[1766314568921,0.001,2998.2,2997.2,3.77140588]
[1766314569121,1.00319313,2998.2,2997.3,2.3865]
[1766314569321,0.81758954,2997.6,2997.4,0.61579059]
[1766314569528,1.58825483,2997.6,2997.2,0.435]
[1766314569690,1.00319313,2998.2,2997.3,2.3865]
[1766314569895,4.15791664,2997.6,2997.3,2.3865]
[1766314570527,0.81758371,2997.6,2997.3,2.3865]
[1766314570721,1.63516742,2997.6,2997.4,0.28215]
[1766314570929,1.63516742,2997.6,2997.5,7.6143]
[1766314571117,4.15791664,2997.8,2997.4,2.3865]
[1766314571318,4.15791664,2997.8,2997.6,2.3865]
[1766314571637,4.15791664,2997.8,2997.7,7.6143]
[1766314571837,4.15791664,2997.8,2997.2,0.435]
[1766314572045,1.00319313,2998.2,2997.3,0.3771507]
[1766314572211,2.62501664,2997.8,2997.3,0.3771507]
[1766314572553,4.15791664,2997.9,2997.3,0.3791507]
[1766314573939,4.15791664,2997.9,2997.4,3.731]
[1766314575015,5.59510977,2998.4,2997.4,3.731]
[1766314575016,1.43719313,2998.4,2997.4,3.731]
[1766314575224,4.15791664,2998.0,2997.6,3.7705]
[1766314575913,4.15791664,2997.8,2997.5,0.41101507]
[1766314577441,6.65481173,2998.0,2997.5,0.41101507]
[1766314577811,11.62371173,2998.0,2997.5,0.41101507]
[1766314578841,4.16051173,2998.0,2997.5,0.41101507]
[1766314579149,4.16051173,2998.0,2997.5,3.9276]
[1766314579327,11.62371173,2998.0,2997.3,3.9296]
[1766314580221,0.435,2998.3,2997.5,0.002]
[1766314580222,4.9689,2997.8,2997.5,0.002]
[1766314580446,7.4632,2997.7,2997.5,4.16251173]
[1766314581240,4.9689,2997.6,2997.5,4.16051173]
[1766314581441,7.4632,2997.6,2997.3,0.002]
[1766314581630,7.4632,2997.6,2997.5,4.16051173]
[1766314582642,2.4943,2997.5,2997.3,4.16051173]
[1766314582952,4.9689,2997.3,2996.9,4.16051173]
[1766314583158,0.435,2997.3,2996.9,11.77481173]
[1766314583325,0.435,2997.3,2996.9,7.7244929]
[1766314584015,0.435,2997.3,2997.2,4.16051173]
[1766314585621,0.435,2997.3,2996.9,7.7244929]
[1766314585943,0.435,2997.3,2997.2,4.16051173]
[1766314586343,0.435,2997.3,2996.9,7.7244929]
[1766314586653,0.435,2997.3,2996.9,5.3379929]
[1766314587357,0.435,2997.3,2996.5,4.16251173]
[1766314587358,2.515,2997.0,2996.5,4.16251173]
[1766314587543,2.515,2996.6,2996.3,4.16151173]
[1766314587852,2.515,2996.6,2996.3,0.001]
[1766314587853,0.435,2996.5,2996.3,0.001]
[1766314588956,2.95,2996.5,2996.3,4.16151173]
[1766314589124,9.141,2996.5,2996.3,4.16151173]
[1766314589463,0.435,2996.5,2996.3,4.16151173]
[1766314589627,0.435,2996.5,2996.3,4.5779629]
[1766314592356,0.435,2996.5,2996.3,0.001]
[1766314592658,9.141,2996.5,2996.2,4.16151173]
[1766314592960,9.141,2996.5,2996.0,0.002]
[1766314592961,2.515,2996.3,2996.0,0.002]
[1766314593147,2.515,2996.1,2995.7,4.16051173]
[1766314593331,5.6206,2996.1,2995.7,4.16051173]
[1766314593531,2.515,2996.0,2995.4,5.7937]
[1766314593731,2.515,2996.0,2995.8,4.16051173]
[1766314594252,2.515,2996.0,2995.4,0.002]
[1766314594430,2.515,2996.0,2995.5,4.16051173]
[1766314594431,2.515,2995.9,2995.5,4.16051173]
[1766314594729,2.515,2995.8,2995.5,4.16051173]
[1766314594924,2.5026,2996.0,2995.5,4.16051173]
[1766314595349,3.96778387,2996.1,2995.5,4.16051173]
[1766314595544,2.9648,2996.0,2995.5,4.16051173]
[1766314595748,1.00298387,2996.1,2995.5,4.16051173]
[1766314596957,0.435,2996.7,2995.8,4.16051173]
[1766314597149,1.00287993,2996.5,2995.8,4.16051173]
[1766314597352,0.435,2996.7,2995.8,4.16051173]
[1766314597656,0.435,2996.7,2995.5,0.70535117]
[1766314597657,1.1978,2996.4,2995.6,4.16051173]
[1766314597825,1.4566,2996.1,2995.6,4.59952661]
[1766314598029,1.1978,2995.9,2995.7,0.435]
[1766314598438,1.00287993,2996.6,2995.7,0.435]
[1766314598640,0.81119668,2996.5,2995.6,2.23842661]
[1766314600248,4.14844352,2996.5,2995.6,2.23842661]
[1766314600450,0.0119,2996.4,2995.6,2.23842661]
[1766314601451,0.0119,2996.3,2995.6,2.23842661]
[1766314601837,1.00298387,2996.3,2995.9,4.16452661]
[1766314602032,0.0119,2996.2,2995.9,4.16452661]
[1766314602238,0.435,2996.8,2995.9,4.16452661]
[1766314602460,1.00289669,2996.5,2995.9,4.16452661]
[1766314602658,6.67311734,2997.1,2996.2,4.16452661]
[1766314602659,0.17379641,2997.0,2996.2,4.16452661]
[1766314602861,1.0028397,2996.9,2996.5,4.16452661]
[1766314603159,3.33636206,2997.3,2996.5,4.16452661]